fUSD/lending_fUSD_20250630
["ID","MTS","AMOUNT","RATE_DAILY","PERIOD"]
[368626351,1751251093409,-490.0,0.00017808,2]
[368626352,1751251093447,-1379.76,0.00017808,2]
[368626353,1751251093473,-1391.49,0.00017808,2]
[368626354,1751251093498,-490.0,0.00017808,2]
[368626355,1751251093524,-619.3,0.00017808,2]
[368626356,1751251093550,-490.0,0.00017808,2]
[368626357,1751251093575,-3925.31,0.00017808,2]
[368626358,1751251093600,-490.0,0.00017808,2]
[368626359,1751251093625,-599.75,0.00017808,2]
[368626360,1751251093650,-490.0,0.00017808,2]
[368626361,1751251093674,-1246.48,0.00017808,2]
[368626362,1751251093697,-2224.29,0.00017808,2]
[368626363,1751251093723,-490.0,0.00017808,2]
[368626364,1751251093748,-635.32,0.00017808,2]
[368626365,1751251093773,-490.0,0.00017808,2]
[368626366,1751251093797,-490.0,0.00017808,2]
[368626367,1751251093822,-545.23,0.00017808,2]
[368626368,1751251093846,-490.0,0.00017808,2]
[368626369,1751251093871,-2107.76,0.00017808,2]
[368626370,1751251093896,-490.0,0.00017808,2]
[368626371,1751251093926,-1436.89,0.00017808,2]
[368626372,1751251093950,-490.0,0.00017808,2]
[368626373,1751251093974,-490.0,0.00017808,2]
[368626374,1751251093998,-490.0,0.00017808,2]
[368626375,1751251094025,-3666.48,0.00017808,2]
[368626376,1751251094049,-490.0,0.00017808,2]
[368626377,1751251094075,-566.44,0.00017808,2]
[368626378,1751251094100,-2835.83,0.00017808,2]
[368626379,1751251094123,-490.0,0.00017808,2]
[368626380,1751251094148,-490.0,0.00017808,2]
[368626381,1751251094173,-3081.38,0.00017808,2]
[368626382,1751251094207,-490.0,0.00017808,2]
[368626383,1751251094233,-519.88796878,0.00017808,2]
[368626384,1751251094258,-490.0,0.00017808,2]
[368626385,1751251094282,-490.0,0.00017808,2]
[368626386,1751251094306,-490.0,0.00017808,2]
[368626387,1751251094329,-490.0,0.00017808,2]
[368626388,1751251094356,-490.0,0.00017808,2]
[368626389,1751251094799,-713.24,0.00017808,2]
[368626390,1751251094824,-1354.58,0.00017808,2]
[368626391,1751251094848,-5101.21,0.00017808,2]
[368626392,1751251094871,-490.0,0.00017808,2]
[368626393,1751251094895,-490.0,0.00017808,2]
[368626394,1751251094917,-552.5,0.00017808,2]
[368626395,1751251094940,-490.0,0.00017808,2]
[368626396,1751251094963,-490.0,0.00017808,2]
[368626397,1751251094990,-490.0,0.00017808,2]
[368626398,1751251095013,-1356.57,0.00017808,2]
[368626399,1751251095037,-490.0,0.00017808,2]
[368626400,1751251095062,-490.0,0.00017808,2]
[368626401,1751251095086,-490.0,0.00017808,2]
[368626402,1751251095109,-490.0,0.00017808,2]
[368626403,1751251095131,-490.0,0.00017808,2]
[368626404,1751251095155,-1328.75,0.00017808,2]
[368626405,1751251095180,-1523.12,0.00017808,2]
[368626406,1751251095203,-490.0,0.00017808,2]
[368626407,1751251095227,-490.0,0.00017808,2]
[368626408,1751251095250,-490.0,0.00017808,2]
[368626409,1751251095276,-903.65,0.00017808,2]
[368626410,1751251095300,-490.0,0.00017808,2]
[368626411,1751251095323,-3248.76,0.00017808,2]
[368626412,1751251095349,-490.0,0.00017808,2]
[368626413,1751251095372,-490.0,0.00017808,2]
[368626414,1751251095396,-2394.33,0.00017808,2]
[368626415,1751251095420,-490.0,0.00017808,2]
[368626416,1751251095444,-3762.22,0.00017808,2]
[368626417,1751251095470,-494.4,0.00017808,2]
[368626418,1751251095493,-490.0,0.00017808,2]
[368626419,1751251095515,-490.0,0.00017808,2]
[368626420,1751251095538,-490.0,0.00017808,2]
[368626421,1751251095561,-490.0,0.00017808,2]
[368626422,1751251095584,-490.0,0.00017808,2]
[368626423,1751251095608,-312.88258433,0.00017808,2]
[368626424,1751251095633,-1276.08,0.00017808,2]
[368626425,1751251095663,-490.0,0.00017808,2]
[368626426,1751251095691,-499.59026226,0.00017808,2]
[368626427,1751251095716,-588.25,0.00017808,2]
[368626428,1751251095743,-490.0,0.00017808,2]
[368626429,1751251095768,-490.0,0.00017808,2]
[368626430,1751251095792,-1183.07,0.00017808,2]
[368626431,1751251095817,-1290.93,0.00017808,2]
[368626432,1751251095842,-1265.76,0.00017808,2]
[368626433,1751251095866,-608.16,0.00017808,2]
[368626434,1751251095889,-1839.7,0.00017808,2]
[368626435,1751251095912,-2986.91,0.00017808,2]
[368626436,1751251095935,-490.0,0.00017808,2]
[368626437,1751251095958,-763.25,0.00017808,2]
[368626438,1751251095982,-3298.39,0.00017808,2]
[368626439,1751251096006,-490.0,0.00017808,2]
[368626440,1751251096029,-490.0,0.00017808,2]
[368626441,1751251096053,-701.33,0.00017808,2]
[368626442,1751251096076,-1614.32,0.00017808,2]
[368626443,1751251096100,-491.14033131,0.00017808,2]
[368626444,1751251096124,-152.50969,0.00017808,2]
[368626445,1751251096147,-157.404004,0.00017808,2]
[368626446,1751251096172,-151.0,0.00017808,2]
[368626447,1751251096197,-211.125538,0.00017808,2]
[368626448,1751251096221,-490.0,0.00017808,2]
[368626449,1751251096244,-490.0,0.00017808,2]
[368626450,1751251096271,-497.88,0.00017808,2]
[368626451,1751251096294,-490.0,0.00017808,2]
[368626452,1751251096316,-250.0,0.00017945,2]
[368626453,1751251096338,-158.23769378,0.00017982,2]
[368626454,1751251096361,-158.23769373,0.00018067,2]
[368626455,1751251096384,-490.0,0.00018081,2]
[368626456,1751251096410,-490.0,0.00018081,2]
[368626457,1751251096434,-490.0,0.00018081,2]
[368626458,1751251096456,-490.0,0.00018081,2]
[368626459,1751251096481,-490.0,0.00018082,2]
[368626460,1751251096505,-490.0,0.00018082,2]
[368626461,1751251096528,-578.38,0.00018082,2]
[368626462,1751251096551,-604.77,0.00018082,2]
[368626463,1751251096575,-2514.47,0.00018082,2]
[368626464,1751251096599,-1411.11,0.00018082,2]
[368626465,1751251096623,-490.0,0.00018082,2]
[368626466,1751251096646,-1238.93,0.00018082,2]
[368626467,1751251096669,-490.0,0.00018082,2]
[368626468,1751251096694,-490.0,0.00018082,2]
[368626469,1751251096718,-569.46,0.00018082,2]
[368626470,1751251096742,-490.0,0.00018082,2]
[368626471,1751251096765,-621.77,0.00018082,2]
[368626472,1751251096789,-890.7,0.00018082,2]
[368626473,1751251096812,-746.6,0.00018082,2]
[368626474,1751251096836,-1222.93,0.00018082,2]
[368626475,1751251096859,-866.13,0.00018082,2]
[368626476,1751251096881,-500.78,0.00018082,2]
[368626477,1751251096905,-970.16,0.00018082,2]
[368626478,1751251096930,-490.0,0.00018082,2]
[368626479,1751251096954,-495.01,0.00018082,2]
[368626480,1751251096978,-915.36,0.00018082,2]
[368626481,1751251097002,-2237.12,0.00018082,2]
[368626482,1751251097026,-1077.35,0.00018082,2]
[368626483,1751251097049,-490.0,0.00018082,2]
[368626484,1751251097072,-1121.18,0.00018082,2]
[368626485,1751251097095,-490.0,0.00018082,2]
[368626486,1751251097118,-1591.21,0.00018082,2]
[368626487,1751251097143,-490.0,0.00018082,2]
[368626488,1751251097166,-532.55,0.00018082,2]
[368626489,1751251097194,-490.0,0.00018082,2]
[368626490,1751251097217,-3079.16,0.00018082,2]
[368626491,1751251097242,-490.0,0.00018082,2]
[368626492,1751251097266,-1802.56,0.00018082,2]
[368626493,1751251097290,-490.0,0.00018082,2]
[368626494,1751251097564,-888.04,0.00018082,2]
[368626495,1751251097588,-659.16,0.00018082,2]
[368626496,1751251097612,-490.0,0.00018082,2]
[368626497,1751251097637,-490.0,0.00018082,2]
[368626498,1751251097661,-1370.37,0.00018082,2]
[368626499,1751251097685,-1258.68,0.00018082,2]
[368626500,1751251097707,-490.0,0.00018082,2]
[368626501,1751251097730,-490.0,0.00018082,2]
[368626502,1751251097753,-490.0,0.00018082,2]
[368626503,1751251097775,-490.0,0.00018082,2]
[368626504,1751251097798,-1958.31,0.00018082,2]
[368626505,1751251097820,-490.0,0.00018082,2]
[368626506,1751251097844,-623.6,0.00018082,2]
[368626507,1751251097866,-490.0,0.00018082,2]
[368626508,1751251097890,-519.66,0.00018082,2]
[368626509,1751251097914,-1471.93,0.00018082,2]
[368626510,1751251097938,-490.0,0.00018082,2]
[368626511,1751251097961,-993.62,0.00018082,2]
[368626512,1751251097985,-490.0,0.00018082,2]
[368626513,1751251098009,-1314.06,0.00018082,2]
[368626514,1751251098033,-151.0,0.00018082,2]
[368626515,1751251098058,-553.83,0.00018082,2]
[368626516,1751251098083,-791.77,0.00018082,2]
[368626517,1751251098108,-1863.04,0.00018082,2]
[368626518,1751251098133,-490.0,0.00018082,2]
[368626519,1751251098157,-1200.57,0.00018082,2]
[368626520,1751251098186,-490.0,0.00018082,2]
[368626521,1751251098213,-1379.76,0.00018082,2]
[368626522,1751251098243,-1391.49,0.00018082,2]
[368626523,1751251098270,-490.0,0.00018082,2]
[368626524,1751251098296,-619.3,0.00018082,2]
[368626525,1751251098321,-3925.31,0.00018082,2]
[368626526,1751251098344,-490.0,0.00018082,2]
[368626527,1751251098369,-490.0,0.00018082,2]
[368626528,1751251098395,-1246.48,0.00018082,2]
[368626529,1751251098419,-2224.29,0.00018082,2]
[368626530,1751251098441,-490.0,0.00018082,2]
[368626531,1751251098464,-635.32,0.00018082,2]
[368626532,1751251098490,-490.0,0.00018082,2]
[368626533,1751251098515,-490.0,0.00018082,2]
[368626534,1751251098538,-545.23,0.00018082,2]
[368626535,1751251098562,-2107.76,0.00018082,2]
[368626536,1751251098586,-490.0,0.00018082,2]
[368626537,1751251098612,-1436.89,0.00018082,2]
[368626538,1751251098636,-490.0,0.00018082,2]
[368626539,1751251098660,-490.0,0.00018082,2]
[368626540,1751251098686,-490.0,0.00018082,2]
[368626541,1751251098712,-3666.48,0.00018082,2]
[368626542,1751251098738,-151.0,0.00018082,2]
[368626543,1751251098762,-173.168946,0.00018082,2]
[368626544,1751251098787,-490.0,0.00018082,2]
[368626545,1751251098812,-566.44,0.00018082,2]
[368626546,1751251098838,-2835.83,0.00018082,2]
[368626547,1751251098864,-490.0,0.00018082,2]
[368626548,1751251098890,-3081.38,0.00018082,2]
[368626549,1751251098916,-490.0,0.00018082,2]
[368626550,1751251098941,-490.0,0.00018082,2]
[368626551,1751251098967,-490.0,0.00018082,2]
[368626552,1751251098994,-490.0,0.00018082,2]
[368626553,1751251099020,-151.0,0.00018082,2]
[368626554,1751251099046,-151.0,0.00018082,2]
[368626555,1751251099072,-284.833147,0.00018082,2]
[368626556,1751251099097,-490.0,0.00018082,2]
[368626557,1751251099123,-490.0,0.00018082,2]
[368626558,1751251099148,-713.24,0.00018082,2]
[368626559,1751251099176,-1354.58,0.00018082,2]
[368626560,1751251099200,-490.0,0.00018082,2]
[368626561,1751251099229,-490.0,0.00018082,2]
[368626562,1751251099256,-5101.21,0.00018082,2]
[368626563,1751251099284,-552.5,0.00018082,2]
[368626564,1751251099311,-490.0,0.00018082,2]
[368626565,1751251099337,-490.0,0.00018082,2]
[368626566,1751251099361,-490.0,0.00018082,2]
[368626567,1751251099386,-1356.57,0.00018082,2]
[368626568,1751251099414,-151.0,0.00018082,2]
[368626569,1751251099439,-490.0,0.00018082,2]
[368626570,1751251099463,-151.0,0.00018082,2]
[368626571,1751251099488,-151.0,0.00018082,2]
[368626572,1751251099511,-151.0,0.00018082,2]
[368626573,1751251099533,-490.0,0.00018082,2]
[368626574,1751251099556,-271.824811,0.00018082,2]
[368626575,1751251099581,-490.0,0.00018082,2]
[368626576,1751251099605,-490.0,0.00018082,2]
[368626577,1751251099629,-490.0,0.00018082,2]
[368626578,1751251099653,-1328.75,0.00018082,2]
[368626579,1751251099678,-1523.12,0.00018082,2]
[368626580,1751251099702,-490.0,0.00018082,2]
[368626581,1751251099727,-575.20849,0.00018082,2]
[368626582,1751251099752,-490.0,0.00018082,2]
[368626583,1751251099778,-575.20849,0.00018082,2]
[368626584,1751251099802,-151.0,0.00018082,2]
[368626585,1751251099827,-490.0,0.00018082,2]
[368626586,1751251099851,-293.573674,0.00018082,2]
[368626587,1751251099875,-903.65,0.00018082,2]
[368626588,1751251099899,-490.0,0.00018082,2]
[368626589,1751251099923,-3248.76,0.00018082,2]
[368626590,1751251099946,-490.0,0.00018082,2]
[368626591,1751251099970,-2394.33,0.00018082,2]
[368626592,1751251099994,-490.0,0.00018082,2]
[368626593,1751251100020,-3762.22,0.00018082,2]
[368626594,1751251100044,-494.4,0.00018082,2]
[368626595,1751251100067,-490.0,0.00018082,2]
[368626596,1751251100090,-490.0,0.00018082,2]
[368626597,1751251100397,-151.0,0.00018082,2]
[368626598,1751251100422,-151.0,0.00018082,2]
[368626599,1751251100445,-151.0,0.00018082,2]
[368626600,1751251100469,-490.0,0.00018082,2]
[368626601,1751251100494,-151.0,0.00018082,2]
[368626602,1751251100520,-490.0,0.00018082,2]
[368626603,1751251100544,-490.0,0.00018082,2]
[368626604,1751251100568,-1276.08,0.00018082,2]
[368626605,1751251100592,-490.0,0.00018082,2]
[368626606,1751251100615,-588.25,0.00018082,2]
[368626607,1751251100638,-490.0,0.00018082,2]
[368626608,1751251100666,-490.0,0.00018082,2]
[368626609,1751251100690,-1183.07,0.00018082,2]
[368626610,1751251100714,-1290.93,0.00018082,2]
[368626611,1751251100739,-1265.76,0.00018082,2]
[368626612,1751251100763,-608.16,0.00018082,2]
[368626613,1751251100789,-1839.7,0.00018082,2]
[368626614,1751251100814,-2986.91,0.00018082,2]
[368626615,1751251100837,-577.18,0.00018082,2]
[368626616,1751251100861,-763.25,0.00018082,2]
[368626617,1751251100884,-3298.39,0.00018082,2]
[368626618,1751251100907,-490.0,0.00018082,2]
[368626619,1751251100930,-490.0,0.00018082,2]
[368626620,1751251100953,-701.33,0.00018082,2]
[368626621,1751251100976,-1614.32,0.00018082,2]
[368626622,1751251100999,-265.97292869,0.00018082,2]
[368626623,1751251101023,-497.88,0.00018082,2]
[368626624,1751251101046,-225.98269699,0.00018082,2]
[368626625,1751251101069,-158.23769373,0.00018152,2]
[368626626,1751251101099,-158.23769373,0.00018237,2]
[368626627,1751251101124,-1333.13924422,0.00018255,2]
[368626628,1751251101152,-158.23769373,0.00018322,2]
[368626629,1751251101178,-547.63,0.00018355,2]
[368626630,1751251101204,-490.0,0.00018355,2]
[368626631,1751251101230,-494.83690361,0.00018355,2]
[368626632,1751251101253,-490.0,0.00018355,2]
[368626633,1751251101278,-490.0,0.00018355,2]
[368626634,1751251101300,-1096.48,0.00018355,2]
[368626635,1751251101324,-1755.35,0.00018355,2]
[368626636,1751251101348,-634.88,0.00018355,2]
[368626637,1751251101372,-2811.51,0.00018355,2]
[368626638,1751251101395,-6060.6,0.00018355,2]
[368626639,1751251101418,-2736.68,0.00018355,2]
[368626640,1751251101443,-1986.67,0.00018355,2]
[368626641,1751251101466,-762.92,0.00018355,2]
[368626642,1751251101490,-735.39,0.00018355,2]
[368626643,1751251101514,-1678.11,0.00018355,2]
[368626644,1751251101538,-490.0,0.00018355,2]
[368626645,1751251101563,-2737.94,0.00018355,2]
[368626646,1751251101586,-490.0,0.00018355,2]
[368626647,1751251101609,-2702.08,0.00018355,2]
[368626648,1751251101633,-2871.02,0.00018355,2]
[368626649,1751251101657,-562.56,0.00018355,2]
[368626650,1751251101680,-490.0,0.00018355,2]
[368626651,1751251101704,-502.25100509,0.00018355,2]
[368626652,1751251101728,-3466.06,0.00018355,2]
[368626653,1751251101751,-606.17,0.00018355,2]
[368626654,1751251101775,-2414.62,0.00018355,2]
[368626655,1751251101798,-490.0,0.00018355,2]
[368626656,1751251101821,-490.0,0.00018355,2]
[368626657,1751251101845,-2462.6,0.00018355,2]
[368626658,1751251101870,-3004.35,0.00018355,2]
[368626659,1751251101895,-490.0,0.00018355,2]
[368626660,1751251101919,-1039.11,0.00018355,2]
[368626661,1751251101944,-1234.13,0.00018355,2]
[368626662,1751251101969,-490.0,0.00018355,2]
[368626663,1751251101993,-490.0,0.00018355,2]
[368626664,1751251102018,-13926.39,0.00018355,2]
[368626665,1751251102042,-1467.71,0.00018355,2]
[368626666,1751251102065,-490.0,0.00018355,2]
[368626667,1751251102089,-490.0,0.00018355,2]
[368626668,1751251102112,-490.0,0.00018356,2]
[368626669,1751251102135,-490.0,0.00018356,2]
[368626670,1751251102159,-578.38,0.00018356,2]
[368626671,1751251102183,-604.77,0.00018356,2]
[368626672,1751251102206,-2514.47,0.00018356,2]
[368626673,1751251102230,-1411.11,0.00018356,2]
[368626674,1751251102254,-490.0,0.00018356,2]
[368626675,1751251102278,-1238.93,0.00018356,2]
[368626676,1751251102301,-490.0,0.00018356,2]
[368626677,1751251102324,-490.0,0.00018356,2]
[368626678,1751251102347,-569.46,0.00018356,2]
[368626679,1751251102370,-490.0,0.00018356,2]
[368626680,1751251102393,-621.77,0.00018356,2]
[368626681,1751251102418,-890.7,0.00018356,2]
[368626682,1751251102441,-746.6,0.00018356,2]
[368626683,1751251102464,-1222.93,0.00018356,2]
[368626684,1751251102488,-866.13,0.00018356,2]
[368626685,1751251102511,-500.78,0.00018356,2]
[368626686,1751251102534,-970.16,0.00018356,2]
[368626687,1751251102559,-490.0,0.00018356,2]
[368626688,1751251102581,-495.01,0.00018356,2]
[368626689,1751251102606,-915.36,0.00018356,2]
[368626690,1751251102632,-2237.12,0.00018356,2]
[368626691,1751251102656,-1077.35,0.00018356,2]
[368626692,1751251102679,-490.0,0.00018356,2]
[368626693,1751251102706,-1121.18,0.00018356,2]
[368626694,1751251102729,-490.0,0.00018356,2]
[368626695,1751251102752,-1591.21,0.00018356,2]
[368626696,1751251102775,-490.0,0.00018356,2]
[368626697,1751251102799,-532.55,0.00018356,2]
[368626698,1751251102823,-490.0,0.00018356,2]
[368626699,1751251102850,-3079.16,0.00018356,2]
[368626700,1751251102875,-212.52915708,0.00018356,2]
[368626701,1751251103158,-1802.56,0.00018356,2]
[368626702,1751251103186,-490.0,0.00018356,2]
[368626703,1751251103212,-888.04,0.00018356,2]
[368626704,1751251103239,-659.16,0.00018356,2]
[368626705,1751251103264,-490.0,0.00018356,2]
[368626706,1751251103290,-490.0,0.00018356,2]
[368626707,1751251103314,-1370.37,0.00018356,2]
[368626708,1751251103338,-1258.68,0.00018356,2]
[368626709,1751251103363,-490.0,0.00018356,2]
[368626710,1751251103387,-490.0,0.00018356,2]
[368626711,1751251103411,-490.0,0.00018356,2]
[368626712,1751251103436,-1958.31,0.00018356,2]
[368626713,1751251103460,-490.0,0.00018356,2]
[368626714,1751251103484,-490.0,0.00018356,2]
[368626715,1751251103509,-623.6,0.00018356,2]
[368626716,1751251103532,-490.0,0.00018356,2]
[368626717,1751251103557,-519.66,0.00018356,2]
[368626718,1751251103582,-1471.93,0.00018356,2]
[368626719,1751251103607,-490.0,0.00018356,2]
[368626720,1751251103630,-993.62,0.00018356,2]
[368626721,1751251103654,-490.0,0.00018356,2]
[368626722,1751251103678,-1314.06,0.00018356,2]
[368626723,1751251103702,-157.48509,0.00018356,2]
[368626724,1751251103726,-553.83,0.00018356,2]
[368626725,1751251103750,-791.77,0.00018356,2]
[368626726,1751251103774,-1863.04,0.00018356,2]
[368626727,1751251103797,-490.0,0.00018356,2]
[368626728,1751251103820,-1200.57,0.00018356,2]
[368626729,1751251103843,-419.40671607,0.00018356,2]
[368626730,1751251103866,-1379.76,0.00018356,2]
[368626731,1751251103890,-1391.49,0.00018356,2]
[368626732,1751251103913,-490.0,0.00018356,2]
[368626733,1751251103936,-619.3,0.00018356,2]
[368626734,1751251103959,-3925.31,0.00018356,2]
[368626735,1751251103984,-490.0,0.00018356,2]
[368626736,1751251104008,-490.0,0.00018356,2]
[368626737,1751251104031,-1246.48,0.00018356,2]
[368626738,1751251104054,-2224.29,0.00018356,2]
[368626739,1751251104078,-490.0,0.00018356,2]
[368626740,1751251104102,-635.32,0.00018356,2]
[368626741,1751251104126,-490.0,0.00018356,2]
[368626742,1751251104149,-490.0,0.00018356,2]
[368626743,1751251104172,-545.23,0.00018356,2]
[368626744,1751251104201,-2107.76,0.00018356,2]
[368626745,1751251104226,-490.0,0.00018356,2]
[368626746,1751251104251,-1436.89,0.00018356,2]
[368626747,1751251104278,-490.0,0.00018356,2]
[368626748,1751251104301,-490.0,0.00018356,2]
[368626749,1751251104324,-490.0,0.00018356,2]
[368626750,1751251104347,-3666.48,0.00018356,2]
[368626751,1751251104370,-490.0,0.00018356,2]
[368626752,1751251104393,-566.44,0.00018356,2]
[368626753,1751251104416,-2835.83,0.00018356,2]
[368626754,1751251104440,-490.0,0.00018356,2]
[368626755,1751251104465,-3081.38,0.00018356,2]
[368626756,1751251104490,-490.0,0.00018356,2]
[368626757,1751251104513,-498.94368142,0.00018356,2]
[368626758,1751251104536,-490.0,0.00018356,2]
[368626759,1751251104560,-490.0,0.00018356,2]
[368626760,1751251104582,-490.0,0.00018356,2]
[368626761,1751251104606,-490.0,0.00018356,2]
[368626762,1751251104630,-713.24,0.00018356,2]
[368626763,1751251104654,-1354.58,0.00018356,2]
[368626764,1751251104677,-490.0,0.00018356,2]
[368626765,1751251104700,-490.0,0.00018356,2]
[368626766,1751251104724,-5101.21,0.00018356,2]
[368626767,1751251104748,-552.5,0.00018356,2]
[368626768,1751251104772,-490.0,0.00018356,2]
[368626769,1751251104797,-490.0,0.00018356,2]
[368626770,1751251104821,-490.0,0.00018356,2]
[368626771,1751251104845,-1356.57,0.00018356,2]
[368626772,1751251104869,-490.0,0.00018356,2]
[368626773,1751251104892,-151.0,0.00018356,2]
[368626774,1751251104915,-490.0,0.00018356,2]
[368626775,1751251104940,-151.0,0.00018356,2]
[368626776,1751251104966,-151.0,0.00018356,2]
[368626777,1751251104992,-490.0,0.00018356,2]
[368626778,1751251105015,-490.0,0.00018356,2]
[368626779,1751251105039,-490.0,0.00018356,2]
[368626780,1751251105063,-1523.12,0.00018356,2]
[368626781,1751251105088,-1328.75,0.00018356,2]
[368626782,1751251105112,-490.0,0.00018356,2]
[368626783,1751251105137,-575.20849,0.00018356,2]
[368626784,1751251105162,-490.0,0.00018356,2]
[368626785,1751251105196,-575.20849,0.00018356,2]
[368626786,1751251105221,-151.0,0.00018356,2]
[368626787,1751251105246,-490.0,0.00018356,2]
[368626788,1751251105269,-903.65,0.00018356,2]
[368626789,1751251105292,-490.0,0.00018356,2]
[368626790,1751251105316,-3248.76,0.00018356,2]
[368626791,1751251105341,-490.0,0.00018356,2]
[368626792,1751251105364,-2394.33,0.00018356,2]
[368626793,1751251105391,-490.0,0.00018356,2]
[368626794,1751251105416,-3762.22,0.00018356,2]
[368626795,1751251105441,-494.4,0.00018356,2]
[368626796,1751251105468,-490.0,0.00018356,2]
[368626797,1751251105494,-490.0,0.00018356,2]
[368626798,1751251105520,-490.0,0.00018356,2]
[368626799,1751251105545,-490.0,0.00018356,2]
[368626800,1751251105569,-151.0,0.00018356,2]
[368626801,1751251105594,-151.0,0.00018356,2]
[368626802,1751251105621,-151.0,0.00018356,2]
[368626803,1751251105644,-490.0,0.00018356,2]
[368626804,1751251105671,-1276.08,0.00018356,2]
[368626805,1751251105934,-490.0,0.00018356,2]
[368626806,1751251105958,-588.25,0.00018356,2]
[368626807,1751251105982,-490.0,0.00018356,2]
[368626808,1751251106005,-490.0,0.00018356,2]
[368626809,1751251106031,-1183.07,0.00018356,2]
[368626810,1751251106055,-1290.93,0.00018356,2]
[368626811,1751251106079,-1265.76,0.00018356,2]
[368626812,1751251106103,-608.16,0.00018356,2]
[368626813,1751251106126,-1839.7,0.00018356,2]
[368626814,1751251106150,-2986.91,0.00018356,2]
[368626815,1751251106173,-763.25,0.00018356,2]
[368626816,1751251106199,-3298.39,0.00018356,2]
[368626817,1751251106223,-490.0,0.00018356,2]
[368626818,1751251106247,-490.0,0.00018356,2]
[368626819,1751251106271,-701.33,0.00018356,2]
[368626820,1751251106294,-1614.32,0.00018356,2]
[368626821,1751251106317,-497.88,0.00018356,2]
[368626822,1751251106341,-1333.13924419,0.00018369,2]
[368626823,1751251106366,-544.0,0.00018388,2]
[368626824,1751251106390,-158.23769373,0.00018407,2]
[368626825,1751251106416,-207.4,0.00018424,2]
[368626826,1751251106440,-283.53672282,0.00018424,2]
[368626827,1751251106463,-300.0,0.00018424,2]
[368626828,1751251106488,-198.34417892,0.00018424,2]
[368626829,1751251106513,-1333.13924419,0.00018483,2]
[368626830,1751251106538,-158.23769373,0.00018492,2]
[368626831,1751251106562,-158.23769373,0.00018578,2]
[368626832,1751251106585,-167.51,0.00018578,2]
[368626833,1751251106610,-1333.13924419,0.00018597,2]
[368626834,1751251106634,-1255.99449107,0.000186,2]
[368626835,1751251106658,-547.63,0.00018629,2]
[368626836,1751251106682,-490.0,0.00018629,2]
[368626837,1751251106706,-490.0,0.00018629,2]
[368626838,1751251106730,-490.0,0.00018629,2]
[368626839,1751251106754,-1096.48,0.00018629,2]
[368626840,1751251106778,-1755.35,0.00018629,2]
[368626841,1751251106802,-634.88,0.00018629,2]
[368626842,1751251106828,-2811.51,0.00018629,2]
[368626843,1751251106854,-6060.6,0.00018629,2]
[368626844,1751251106880,-2736.68,0.00018629,2]
[368626845,1751251106906,-1986.67,0.00018629,2]
[368626846,1751251106930,-762.92,0.00018629,2]
[368626847,1751251106956,-735.39,0.00018629,2]
[368626848,1751251106983,-1678.11,0.00018629,2]
[368626849,1751251107007,-490.0,0.00018629,2]
[368626850,1751251107030,-2737.94,0.00018629,2]